Workbook

Sheet Marathon2
A1: № | B1: Сайт | C1: Байин | D1: Тип / Гарантия | E1: Призы | F1: Дата | H1: Дистанция | I1: % ИТМ | J1: Профит | K1: Рои | L1: ABI | M1: проф | N1: сумма би | O1: сумма призов
A2: 1 | B2: ftp | C2: 3.3 | D2: 500 | F2: 9.03 | H2: =COUNT(C2:C1145) -> 119 | I2: =(P2/H2)*(100/100) -> 0.218487395 | J2: =SUM(M2:M1145) -> -340.68 | K2: =((O2-N2)/N2)*(100/100) -> -0.2379485841 | L2: =N2/H2 -> 12.8789916 | M2: =E2-C2 -> -3.3 | N2: =SUM(C2:C1145) -> 1532.6 | O2: =SUM(E2:E1145) -> 1167.92 | P2: =COUNTIF(E2:E1145,">0") -> 26
A3: 2 | B3: ps | C3: 8 | D3: 6max, 4k | F3: 9.03 | M3: =E3-C3 -> -8
A4: 3 | B4: ps | C4: 15.5 | D4: 5$, 2R1A, 5k | E4: 26.47 | F4: 10.03 | H4: БР Марафона | M4: =E4-C4 -> 10.97
A5: 4 | B5: ps | C5: 5.5 | D5: The Bigger 40k | E5: 18.12 | F5: 10.03 | H5: =2000+J2 -> 1659.32 | M5: =E5-C5 -> 12.62
A6: 5 | B6: ps | C6: 6.2 | D6: 2+r 8kg | F6: 10.03 | M6: =E6-C6 -> -6.2
A7: 6 | B7: ps | C7: 3.3 | D7: 6max, 3k | F7: 10.03 | M7: =E7-C7 -> -3.3
A8: 7 | B8: ftp | C8: 11 | D8: 3k | F8: 10.03 | M8: =E8-C8 -> -11
A9: 8 | B9: ftp | C9: 11 | D9: Super Stack, 5k | F9: 10.03 | M9: =E9-C9 -> -11
A10: 9 | B10: ps | C10: 24.8 | D10: 8+r, 17.5kg | F10: 10.03 | M10: =E10-C10 -> -24.8
A11: 10 | B11: ps | C11: 6.2 | D11: 2+r, 8kg | F11: 10.03 | M11: =E11-C11 -> -6.2
A12: 11 | B12: ps | C12: 8.2 | D12: 2.2+r 2kg | F12: 10.03 | M12: =E12-C12 -> -8.2
A13: 12 | B13: ps | C13: 20.5 | D13: 5.5 2R1A 5kg | F13: 10.03 | M13: =E13-C13 -> -20.5
A14: 13 | B14: ps | C14: 24.8 | D14: 8.8 1r1a, 10kg | F14: 10.03 | M14: =E14-C14 -> -24.8
A15: 14 | B15: ps | C15: 22 | D15: The Bigger 100k | F15: 10.03 | M15: =E15-C15 -> -22
A16: 15 | B16: ps | C16: 11 | D16: The Hotter 50k | E16: 23.53 | F16: 10.03 | M16: =E16-C16 -> 12.53
A17: 16 | B17: FTP | C17: 22 | D17: The $100K Double Deuce | F17: 10.03 | M17: =E17-C17 -> -22
A18: 17 | B18: PS | C18: 11 | D18: Sunda Storm | E18: 15.57 | F18: 10.03 | M18: =E18-C18 -> 4.57
A19: 18 | B19: PS | C19: 16.5 | D19: The Hotter 50k | F19: 10.03 | M19: =E19-C19 -> -16.5
A20: 19 | B20: PS | C20: 11 | D20: The Bigger 120k | E20: 34.41 | F20: 10.03 | M20: =E20-C20 -> 23.41
A21: 20 | B21: PS | C21: 3.3 | D21: 6max, 4k | F21: 10.03 | M21: =E21-C21 -> -3.3
A22: 21 | B22: PS | C22: 12.3 | D22: 3.3+r 20k | F22: 10.03 | M22: =E22-C22 -> -12.3
A23: 22 | B23: PS | C23: 13.5 | D23: KO 8k | F23: 10.03 | M23: =E23-C23 -> -13.5
A24: 23 | B24: PS | C24: 15.5 | D24: 5$ 1r1a 2k | F24: 10.03 | M24: =E24-C24 -> -15.5
A25: 24 | B25: PS | C25: 5.4 | D25: turbo KO, 10k | F25: 10.03 | M25: =E25-C25 -> -5.4
A26: 25 | B26: PS | C26: 5.5 | D26: turbo 10k | F26: 10.03 | M26: =E26-C26 -> -5.5
A27: 26 | B27: PS | C27: 4.4 | D27: turbo 8k | E27: 10.55 | F27: 10.03 | M27: =E27-C27 -> 6.15
A28: 27 | B28: PS | C28: 7.1 | D28: 1.1+r 3x-turbo 60k | F28: 10.03 | M28: =E28-C28 -> -7.1
A29: 28 | B29: PS | C29: 11 | D29: 10k | F29: 10.03 | M29: =E29-C29 -> -11
A30: 29 | B30: PS | C30: 15.3 | D30: 3.3+r, 2x-turbo, 15k | F30: 10.03 | M30: =E30-C30 -> -15.3
A31: 30 | B31: PS | C31: 20.5 | D31: 5$ 2r1a, 7.5k | F31: 10.03 | M31: =E31-C31 -> -20.5
A32: 31 | B32: PS | C32: 31 | D32: 11+r 40k | E32: 445.35 | F32: 10.03 | G32: 15 | M32: =E32-C32 -> 414.35
A33: 32 | B33: PS | C33: 8.8 | D33: 8k | F33: 10.03 | M33: =E33-C33 -> -8.8
A34: 33 | B34: PS | C34: 20.5 | D34: 5$ 2r1a , 17.5k | F34: 11.03 | M34: =E34-C34 -> -20.5
A35: 34 | B35: PS | C35: 11 | D35: 3000 | F35: 11.03 | M35: =E35-C35 -> -11
A36: 35 | B36: PS | C36: 16.5 | D36: 360 cap, 4kg | F36: 11.03 | M36: =E36-C36 -> -16.5
A37: 36 | B37: PS | C37: 4.4 | D37: 4max, 2.5k | E37: 34 | F37: 11.03 | M37: =E37-C37 -> 29.6
A38: 37 | B38: PS | C38: 12.4 | D38: 4+r, 4max, 2k | F38: 11.03 | M38: =E38-C38 -> -12.4
A39: 38 | B39: PS | C39: 2.2 | D39: 6max turbo, 6k | F39: 11.03 | M39: =E39-C39 -> -2.2
A40: 39 | B40: PS | C40: 4.4 | D40: The Bigger 30k | F40: 11.03 | M40: =E40-C40 -> -4.4
A41: 40 | B41: PS | C41: 11 | D41: turbo, 18k | F41: 11.03 | M41: =E41-C41 -> -11
A42: 41 | B42: PS | C42: 15.5 | D42: 5.5+r, 15k | E42: 26.13 | F42: 11.03 | M42: =E42-C42 -> 10.63
A43: 42 | B43: PS | C43: 2.2 | D43: 6max turbo, 5k | E43: 9.29 | F43: 11.03 | M43: =E43-C43 -> 7.09
A44: 43 | B44: PS | C44: 5.5 | D44: 6max, 2.5k | F44: 11.03 | M44: =E44-C44 -> -5.5
A45: 44 | B45: PS | C45: 16.4 | D45: 4$, 2r1a, 5k | F45: 11.03 | M45: =E45-C45 -> -16.4
A46: 45 | B46: PS | C46: 11 | D46: 7.5k | F46: 11.03 | M46: =E46-C46 -> -11
A47: 46 | B47: PS | C47: 5.5 | D47: Hotter | F47: 11.03 | M47: =E47-C47 -> -5.5
A48: 47 | B48: PS | C48: 31 | D48: 11$ 1r1a, 7.5k | F48: 11.03 | M48: =E48-C48 -> -31
A49: 48 | B49: PS | C49: 8.8 | D49: 500 cap, 2k | F49: 11.03 | M49: =E49-C49 -> -8.8
A50: 49 | B50: PS | C50: 7.1 | D50: 1+r, 3x-turbo, 30k | F50: 11.03 | M50: =E50-C50 -> -7.1
A51: 50 | B51: PS | C51: 27.5 | D51: The Bigger 30k | F51: 11.03 | M51: =E51-C51 -> -27.5
A52: 51 | B52: PS | C52: 9.3 | D52: 3+r 3k | F52: 11.03 | M52: =E52-C52 -> -9.3
A53: 52 | B53: PS | C53: 6.2 | D53: 2+r, 500 cap, 2k | E53: 35.8 | F53: 11.03 | M53: =E53-C53 -> 29.6
A54: 53 | B54: PS | C54: 20.5 | D54: 5, 2r1a, 3k | F54: 11.03 | M54: =E54-C54 -> -20.5
A55: 54 | B55: PS | C55: 5.1 | D55: 1+r, 2x-turbo, 6k | F55: 11.03 | M55: =E55-C55 -> -5.1
A56: 55 | B56: PS | C56: 2.2 | D56: The Bigger, 10k | F56: 11.03 | M56: =E56-C56 -> -2.2
A57: 56 | B57: PS | C57: 22 | D57: The Hotter, 20k | E57: 37.32 | F57: 11.03 | M57: =E57-C57 -> 15.32
A58: 57 | B58: PS | C58: 8.8 | D58: 6max, turbo, 4k | F58: 11.03 | M58: =E58-C58 -> -8.8
A59: 58 | B59: PS | C59: 6.2 | D59: 2+r, 8k | F59: 11.03 | M59: =E59-C59 -> -6.2
A60: 59 | B60: PS | C60: 6.2 | D60: 2+r, 500cap, 2k | F60: 11.03 | M60: =E60-C60 -> -6.2
A61: 60 | B61: PS | C61: 20.5 | D61: 5$, 2r1a, 5k | F61: 11.03 | M61: =E61-C61 -> -20.5
A62: 61 | B62: PS | C62: 24.8 | D62: 8+r, 17.5k | F62: 11.03 | M62: =E62-C62 -> -24.8
A63: 62 | B63: PS | C63: 8.8 | D63: The Big, 25k | E63: 15.83 | F63: 11.03 | M63: =E63-C63 -> 7.03
A64: 63 | B64: PS | C64: 24.8 | D64: 8$, 1r1a, 10k | F64: 11.03 | M64: =E64-C64 -> -24.8
A65: 64 | B65: FTP | C65: 11 | D65: Super Stack, 5k | F65: 11.03 | M65: =E65-C65 -> -11
A66: 65 | B66: PS | C66: 13.5 | D66: KO, 5k | F66: 11.03 | M66: =E66-C66 -> -13.5
A67: 66 | B67: PS | C67: 22 | D67: The Big, 50k | F67: 11.03 | M67: =E67-C67 -> -22
A68: 67 | B68: PS | C68: 18.2 | D68: 2+r, 2x-turbo, 9k | F68: 11.03 | M68: =E68-C68 -> -18.2
A69: 68 | B69: PS | C69: 5.4 | D69: turbo ko, 10k | E69: 30.93 | F69: 11.03 | M69: =E69-C69 -> 25.53
A70: 69 | B70: PS | C70: 11 | D70: The Hot, 25k | F70: 11.03 | M70: =E70-C70 -> -11
A71: 70 | B71: PS | C71: 8.8 | D71: 500cap, 3k | F71: 11.03 | M71: =E71-C71 -> -8.8
A72: 71 | B72: PS | C72: 22 | D72: 12k | F72: 11.03 | M72: =E72-C72 -> -22
A73: 72 | B73: FTP | C73: 26 | D73: 12k | F73: 11.03 | M73: =E73-C73 -> -26
A74: 73 | B74: PS | C74: 16.5 | D74: The Hot, 25k | F74: 11.03 | M74: =E74-C74 -> -16.5
A75: 74 | B75: PS | C75: 8.8 | D75: 500cap, 6max, 3k | F75: 11.03 | M75: =E75-C75 -> -8.8
A76: 75 | B76: PS | C76: 11 | D76: The Big, 60k | F76: 11.03 | M76: =E76-C76 -> -11
A77: 76 | B77: PS | C77: 3.3 | D77: 6max, 4k | F77: 11.03 | M77: =E77-C77 -> -3.3
A78: 77 | B78: PS | C78: 22 | D78: 6max, 500cap, 4k | F78: 11.03 | M78: =E78-C78 -> -22
A79: 78 | B79: PS | C79: 9.3 | D79: 3+r, 20k | F79: 11.03 | M79: =E79-C79 -> -9.3
A80: 79 | B80: PS | C80: 13.5 | D80: ko, 8k | F80: 11.03 | M80: =E80-C80 -> -13.5
A81: 80 | B81: FTP | C81: 31 | D81: 10+r, The Tenner, 10k | F81: 11.03 | M81: =E81-C81 -> -31
A82: 81 | B82: PS | C82: 4.4 | D82: turbo, 8k | F82: 11.03 | M82: =E82-C82 -> -4.4
A83: 82 | B83: PS | C83: 16.5 | D83: 6max, 4k | F83: 11.03 | M83: =E83-C83 -> -16.5
A84: 83 | B84: PS | C84: 5.5 | D84: turbo, 10k | F84: 11.03 | M84: =E84-C84 -> -5.5
A85: 84 | B85: PS | C85: 11 | D85: 10k | F85: 11.03 | M85: =E85-C85 -> -11
A86: 85 | B86: PS | C86: 5.4 | D86: trubo ko, 10k | E86: 7 | F86: 11.03 | M86: =E86-C86 -> 1.6
A87: 86 | B87: PS | C87: 24.3 | D87: 3+r, 2x-trubo, 9k | F87: 11.03 | M87: =E87-C87 -> -24.3
A88: 87 | B88: PS | C88: 20.5 | D88: 5$, 2r1a, 7.5k | F88: 12.03 | M88: =E88-C88 -> -20.5
A89: 88 | B89: PS | C89: 31 | D89: 11+r, 40k | E89: 92.59 | F89: 12.03 | M89: =E89-C89 -> 61.59
A90: 89 | B90: PS | C90: 11 | D90: 3k | F90: 12.03 | M90: =E90-C90 -> -11
A91: 90 | B91: PS | C91: 4.4 | D91: 4max, 2.5k | F91: 12.03 | M91: =E91-C91 -> -4.4
A92: 91 | B92: PS | C92: 20.5 | D92: 5$ 2r1a, 17.5k | F92: 12.03 | M92: =E92-C92 -> -20.5
A93: 92 | B93: PS | C93: 20.4 | D93: 4+r, 4max, 2k | F93: 12.03 | M93: =E93-C93 -> -20.4
A94: 93 | B94: PS | C94: 16.5 | D94: 360cap, 4k | E94: 45.9 | F94: 12.03 | M94: =E94-C94 -> 29.4
A95: 94 | B95: PS | C95: 2.2 | D95: 6max, turbo, 6k | E95: 19.92 | F95: 12.03 | M95: =E95-C95 -> 17.72
A96: 95 | B96: PS | C96: 4.4 | D96: The Big, 15k | F96: 12.03 | M96: =E96-C96 -> -4.4
A97: 96 | B97: PS | C97: 8.8 | D97: 8k | F97: 12.03 | M97: =E97-C97 -> -8.8
A98: 97 | B98: PS | C98: 11 | D98: turbo, 18k | F98: 12.03 | M98: =E98-C98 -> -11
A99: 98 | B99: PS | C99: 30.5 | D99: 5+r, 15k | F99: 12.03 | M99: =E99-C99 -> -30.5
A100: 99 | C100: 2.2 | D100: 6max, turbo, 5k | F100: 12.03 | M100: =E100-C100 -> -2.2
A101: 100 | C101: 16.4 | D101: 4$, 2r1a, 5k | E101: 30.22 | F101: 12.03 | M101: =E101-C101 -> 13.82
A102: 101 | C102: 11 | D102: 7.5k | E102: 62.33 | F102: 12.03 | M102: =E102-C102 -> 51.33
A103: 102 | C103: 5.5 | D103: 6max, 2.5k | E103: 9.54 | F103: 12.03 | M103: =E103-C103 -> 4.04
A104: 103 | C104: 8.8 | D104: 500cap, 2k | F104: 12.03 | M104: =E104-C104 -> -8.8
A105: 104 | C105: 31 | D105: 11$, 1r1a, 7.5k | F105: 12.03 | M105: =E105-C105 -> -31
A106: 105 | C106: 22 | D106: 500cap, 6max, 2k | F106: 12.03 | M106: =E106-C106 -> -22
A107: 106 | C107: 5.5 | D107: The Hot, 5k | F107: 12.03 | M107: =E107-C107 -> -5.5
A108: 107 | C108: 3.1 | D108: 1+r, 3x-turbo, 30k | F108: 12.03 | M108: =E108-C108 -> -3.1
A109: 108 | C109: 27.5 | D109: The Big, 15k | F109: 12.03 | M109: =E109-C109 -> -27.5
A110: 109 | C110: 12.3 | D110: 3+r, 3k | F110: 12.03 | M110: =E116-C110 -> 11.7
A111: 110 | C111: 3.1 | D111: 1+r, 2x-turbo, 6k | E111: 16.16 | F111: 12.03 | M111: =E111-C111 -> 13.06
A112: 111 | C112: 6.2 | D112: 2+r, 500cap, 2k | E112: 16.26 | F112: 12.03 | M112: =E112-C112 -> 10.06
A113: 112 | C113: 6.2 | D113: 2+r,turbo, 6max, 2k | E113: 61.38 | F113: 12.03 | M113: =E113-C113 -> 55.18
A114: 113 | C114: 11 | D114: 2.5k | E114: 19.32 | F114: 12.03 | M114: =E114-C114 -> 8.32
A115: 114 | C115: 15.5 | D115: 5$, 2r1a, 3k | F115: 12.03 | M115: =E115-C115 -> -15.5
A116: 115 | C116: 8.8 | D116: 6max, 500cap | E116: 24 | F116: 12.03 | M116: =E116-C116 -> 15.2
A117: 116 | C117: 22 | D117: The Hot, 10k | F117: 12.03 | M117: =E117-C117 -> -22
A118: 117 | C118: 8.8 | D118: 6max, turbo, 4k | F118: 12.03 | M118: =E118-C118 -> -8.8
A119: 118 | C119: 21.3 | D119: 3+r, 2x-trubo, 4k | F119: 12.03 | M119: =E119-C119 -> -21.3
A120: 119 | C120: 9.1 | D120: 1+r, turbo, 7k | F120: 12.03 | M120: =E120-C120 -> -9.1
A121: 120 | M121: =E121-C121 -> 0
A122: 121 | M122: =E122-C122 -> 0
A123: 122 | M123: =E123-C123 -> 0
A124: 123 | M124: =E124-C124 -> 0
A125: 124 | M125: =E125-C125 -> 0
A126: 125 | M126: =E126-C126 -> 0
A127: 126 | M127: =E127-C127 -> 0
A128: 127 | M128: =E128-C128 -> 0
A129: 128 | M129: =E129-C129 -> 0
A130: 129 | M130: =E130-C130 -> 0
A131: 130 | M131: =E131-C131 -> 0
A132: 131 | M132: =E132-C132 -> 0
A133: 132 | M133: =E133-C133 -> 0
A134: 133 | M134: =E134-C134 -> 0
A135: 134 | M135: =E135-C135 -> 0
A136: 135 | M136: =E136-C136 -> 0
A137: 136 | M137: =E137-C137 -> 0
A138: 137 | M138: =E138-C138 -> 0
A139: 138 | M139: =E139-C139 -> 0
A140: 139 | M140: =E140-C140 -> 0
A141: 140 | M141: =E141-C141 -> 0
A142: 141 | M142: =E142-C142 -> 0
A143: 142 | M143: =E143-C143 -> 0
A144: 143 | M144: =E144-C144 -> 0
A145: 144 | M145: =E145-C145 -> 0
A146: 145 | M146: =E146-C146 -> 0
A147: 146 | M147: =E147-C147 -> 0
A148: 147 | M148: =E148-C148 -> 0
A149: 148 | M149: =E149-C149 -> 0
A150: 149 | M150: =E150-C150 -> 0
A151: 150 | M151: =E151-C151 -> 0
A152: 151 | M152: =E152-C152 -> 0
A153: 152 | M153: =E153-C153 -> 0
A154: 153 | M154: =E154-C154 -> 0
A155: 154 | M155: =E155-C155 -> 0
A156: 155 | M156: =E156-C156 -> 0
A157: 156 | M157: =E157-C157 -> 0
A158: 157 | M158: =E158-C158 -> 0
A159: 158 | M159: =E159-C159 -> 0
A160: 159 | M160: =E160-C160 -> 0
A161: 160 | M161: =E161-C161 -> 0
A162: 161 | M162: =E162-C162 -> 0
A163: 162 | M163: =E163-C163 -> 0
A164: 163 | M164: =E164-C164 -> 0
A165: 164 | M165: =E165-C165 -> 0
A166: 165 | M166: =E166-C166 -> 0
A167: 166 | M167: =E167-C167 -> 0
A168: 167 | M168: =E168-C168 -> 0
A169: 168 | M169: =E169-C169 -> 0
A170: 169 | M170: =E170-C170 -> 0
A171: 170 | M171: =E171-C171 -> 0
A172: 171 | M172: =E172-C172 -> 0
A173: 172 | M173: =E173-C173 -> 0
A174: 173 | M174: =E174-C174 -> 0
A175: 174 | M175: =E175-C175 -> 0
A176: 175 | M176: =E176-C176 -> 0
A177: 176 | M177: =E177-C177 -> 0
A178: 177 | M178: =E178-C178 -> 0
A179: 178 | M179: =E179-C179 -> 0
A180: 179 | M180: =E180-C180 -> 0
A181: 180 | M181: =E181-C181 -> 0
A182: 181 | M182: =E182-C182 -> 0
A183: 182 | M183: =E183-C183 -> 0
A184: 183 | M184: =E184-C184 -> 0
A185: 184 | M185: =E185-C185 -> 0
A186: 185 | M186: =E186-C186 -> 0
A187: 186 | M187: =E187-C187 -> 0
A188: 187 | M188: =E188-C188 -> 0
A189: 188 | M189: =E189-C189 -> 0
A190: 189 | M190: =E190-C190 -> 0
A191: 190 | M191: =E191-C191 -> 0
A192: 191 | M192: =E192-C192 -> 0
A193: 192 | M193: =E193-C193 -> 0
A194: 193 | M194: =E194-C194 -> 0
A195: 194 | M195: =E195-C195 -> 0
A196: 195 | M196: =E196-C196 -> 0
A197: 196 | M197: =E197-C197 -> 0
A198: 197 | M198: =E198-C198 -> 0
A199: 198 | M199: =E199-C199 -> 0
A200: 199 | M200: =E200-C200 -> 0
... 945 more rows

Sheet Расчеты2

Sheet Marathon1
M1: проф | N1: сумма би | O1: сумма призов
M2: =E2-C2 -> 0 | N2: =SUM(C2:C1145) -> 0 | O2: =SUM(E2:E1145) -> 0 | P2: =COUNTIF(E2:E1145,">0") -> 0
M3: =E3-C3 -> 0
M4: =E4-C4 -> 0
M5: =E5-C5 -> 0
M6: =E6-C6 -> 0
M7: =E7-C7 -> 0
M8: =E8-C8 -> 0
M9: =E9-C9 -> 0
M10: =E10-C10 -> 0
M11: =E11-C11 -> 0
M12: =E12-C12 -> 0
M13: =E13-C13 -> 0
M14: =E14-C14 -> 0
M15: =E15-C15 -> 0
M16: =E16-C16 -> 0
M17: =E17-C17 -> 0
M18: =E18-C18 -> 0
M19: =E19-C19 -> 0
M20: =E20-C20 -> 0
M21: =E21-C21 -> 0
M22: =E22-C22 -> 0
M23: =E23-C23 -> 0
M24: =E24-C24 -> 0
M25: =E25-C25 -> 0
M26: =E26-C26 -> 0
M27: =E27-C27 -> 0
M28: =E28-C28 -> 0
M29: =E29-C29 -> 0
M30: =E30-C30 -> 0
M31: =E31-C31 -> 0
M32: =E32-C32 -> 0
M33: =E33-C33 -> 0
M34: =E34-C34 -> 0
M35: =E35-C35 -> 0
M36: =E36-C36 -> 0
M37: =E37-C37 -> 0
M38: =E38-C38 -> 0
M39: =E39-C39 -> 0
M40: =E40-C40 -> 0
M41: =E41-C41 -> 0
M42: =E42-C42 -> 0
M43: =E43-C43 -> 0
M44: =E44-C44 -> 0
M45: =E45-C45 -> 0
M46: =E46-C46 -> 0
M47: =E47-C47 -> 0
M48: =E48-C48 -> 0
M49: =E49-C49 -> 0
M50: =E50-C50 -> 0
M51: =E51-C51 -> 0
M52: =E52-C52 -> 0
M53: =E53-C53 -> 0
M54: =E54-C54 -> 0
M55: =E55-C55 -> 0
M56: =E56-C56 -> 0
M57: =E57-C57 -> 0
M58: =E58-C58 -> 0
M59: =E59-C59 -> 0
M60: =E60-C60 -> 0
M61: =E61-C61 -> 0
M62: =E62-C62 -> 0
M63: =E63-C63 -> 0
M64: =E64-C64 -> 0
M65: =E65-C65 -> 0
M66: =E66-C66 -> 0
M67: =E67-C67 -> 0
M68: =E68-C68 -> 0
M69: =E69-C69 -> 0
M70: =E70-C70 -> 0
M71: =E71-C71 -> 0
M72: =E72-C72 -> 0
M73: =E73-C73 -> 0
M74: =E74-C74 -> 0
M75: =E75-C75 -> 0
M76: =E76-C76 -> 0
M77: =E77-C77 -> 0
M78: =E78-C78 -> 0
M79: =E79-C79 -> 0
M80: =E80-C80 -> 0
M81: =E81-C81 -> 0
M82: =E82-C82 -> 0
M83: =E83-C83 -> 0
M84: =E84-C84 -> 0
M85: =E85-C85 -> 0
M86: =E86-C86 -> 0
M87: =E87-C87 -> 0
M88: =E88-C88 -> 0
M89: =E89-C89 -> 0
M90: =E90-C90 -> 0
M91: =E91-C91 -> 0
M92: =E92-C92 -> 0
M93: =E93-C93 -> 0
M94: =E94-C94 -> 0
M95: =E95-C95 -> 0
M96: =E96-C96 -> 0
M97: =E97-C97 -> 0
M98: =E98-C98 -> 0
M99: =E99-C99 -> 0
M100: =E100-C100 -> 0
M101: =E101-C101 -> 0
M102: =E102-C102 -> 0
M103: =E103-C103 -> 0
M104: =E104-C104 -> 0
M105: =E105-C105 -> 0
M106: =E106-C106 -> 0
M107: =E107-C107 -> 0
M108: =E108-C108 -> 0
M109: =E109-C109 -> 0
M110: =E110-C110 -> 0
M111: =E111-C111 -> 0
M112: =E112-C112 -> 0
M113: =E113-C113 -> 0
M114: =E114-C114 -> 0
M115: =E115-C115 -> 0
M116: =E116-C116 -> 0
M117: =E117-C117 -> 0
M118: =E118-C118 -> 0
M119: =E119-C119 -> 0
M120: =E120-C120 -> 0
M121: =E121-C121 -> 0
M122: =E122-C122 -> 0
M123: =E123-C123 -> 0
M124: =E124-C124 -> 0
M125: =E125-C125 -> 0
M126: =E126-C126 -> 0
M127: =E127-C127 -> 0
M128: =E128-C128 -> 0
M129: =E129-C129 -> 0
M130: =E130-C130 -> 0
M131: =E131-C131 -> 0
M132: =E132-C132 -> 0
M133: =E133-C133 -> 0
M134: =E134-C134 -> 0
M135: =E135-C135 -> 0
M136: =E136-C136 -> 0
M137: =E137-C137 -> 0
A138: 137 | M138: =E138-C138 -> 0
A139: 138 | M139: =E139-C139 -> 0
A140: 139 | M140: =E140-C140 -> 0
A141: 140 | M141: =E141-C141 -> 0
A142: 141 | M142: =E142-C142 -> 0
A143: 142 | M143: =E143-C143 -> 0
A144: 143 | M144: =E144-C144 -> 0
A145: 144 | M145: =E145-C145 -> 0
A146: 145 | M146: =E146-C146 -> 0
A147: 146 | M147: =E147-C147 -> 0
A148: 147 | M148: =E148-C148 -> 0
A149: 148 | M149: =E149-C149 -> 0
A150: 149 | M150: =E150-C150 -> 0
A151: 150 | M151: =E151-C151 -> 0
A152: 151 | M152: =E152-C152 -> 0
A153: 152 | M153: =E153-C153 -> 0
A154: 153 | M154: =E154-C154 -> 0
A155: 154 | M155: =E155-C155 -> 0
A156: 155 | M156: =E156-C156 -> 0
A157: 156 | M157: =E157-C157 -> 0
A158: 157 | M158: =E158-C158 -> 0
A159: 158 | M159: =E159-C159 -> 0
A160: 159 | M160: =E160-C160 -> 0
A161: 160 | M161: =E161-C161 -> 0
A162: 161 | M162: =E162-C162 -> 0
A163: 162 | M163: =E163-C163 -> 0
A164: 163 | M164: =E164-C164 -> 0
A165: 164 | M165: =E165-C165 -> 0
A166: 165 | M166: =E166-C166 -> 0
A167: 166 | M167: =E167-C167 -> 0
A168: 167 | M168: =E168-C168 -> 0
A169: 168 | M169: =E169-C169 -> 0
A170: 169 | M170: =E170-C170 -> 0
A171: 170 | M171: =E171-C171 -> 0
A172: 171 | M172: =E172-C172 -> 0
A173: 172 | M173: =E173-C173 -> 0
A174: 173 | M174: =E174-C174 -> 0
A175: 174 | M175: =E175-C175 -> 0
A176: 175 | M176: =E176-C176 -> 0
A177: 176 | M177: =E177-C177 -> 0
A178: 177 | M178: =E178-C178 -> 0
A179: 178 | M179: =E179-C179 -> 0
A180: 179 | M180: =E180-C180 -> 0
A181: 180 | M181: =E181-C181 -> 0
A182: 181 | M182: =E182-C182 -> 0
A183: 182 | M183: =E183-C183 -> 0
A184: 183 | M184: =E184-C184 -> 0
A185: 184 | M185: =E185-C185 -> 0
A186: 185 | M186: =E186-C186 -> 0
A187: 186 | M187: =E187-C187 -> 0
A188: 187 | M188: =E188-C188 -> 0
A189: 188 | M189: =E189-C189 -> 0
A190: 189 | M190: =E190-C190 -> 0
A191: 190 | M191: =E191-C191 -> 0
A192: 191 | M192: =E192-C192 -> 0
A193: 192 | M193: =E193-C193 -> 0
A194: 193 | M194: =E194-C194 -> 0
A195: 194 | M195: =E195-C195 -> 0
A196: 195 | M196: =E196-C196 -> 0
A197: 196 | M197: =E197-C197 -> 0
A198: 197 | M198: =E198-C198 -> 0
A199: 198 | M199: =E199-C199 -> 0
A200: 199 | M200: =E200-C200 -> 0
... 945 more rows

Sheet Расчеты
